bitfinex/quotes_ETHUSD_20240721
["timestamp","ask_amount","ask_price","bid_price","bid_amount"]
[1721585651770,0.1468901,3440.8,3438.7,2.90803]
[1721585651969,0.1468901,3440.8,3438.8,3.0]
[1721585652168,0.1468901,3440.8,3439.3,2.90754]
[1721585652169,0.02586952,3440.7,3439.3,2.90754]
[1721585652348,0.1468901,3440.8,3438.8,3.590803]
[1721585652549,0.1468901,3440.8,3439.8,2.90711]
[1721585652898,0.1468901,3440.8,3438.9,5.8218]
[1721585652899,0.02586952,3440.7,3439.3,2.90756]
[1721585653215,0.1468901,3440.8,3438.9,8.17964]
[1721585653216,0.1468901,3440.8,3438.9,2.2718]
[1721585653353,0.1468901,3440.8,3438.9,2.49898]
[1721585653689,0.1468901,3440.8,3439.0,0.55]
[1721585653891,0.1468901,3440.8,3439.8,2.90713]
[1721585654094,0.1468901,3440.8,3439.0,3.55]
[1721585654311,0.1468901,3440.8,3440.5,2.90653]
[1721585654797,0.1468901,3440.8,3440.1,2.90687]
[1721585655096,0.1468901,3440.8,3439.9,3.0]
[1721585655264,3.0532501,3440.8,3438.9,2.2718]
[1721585655465,0.1468901,3440.8,3438.9,3.1138002]
[1721585655718,0.1468901,3440.8,3439.0,3.68472814]
[1721585655719,2.93303067,3440.7,3439.0,3.68472814]
[1721585656002,2.93301067,3440.7,3439.0,2.9078]
[1721585656195,2.93301067,3440.7,3438.9,2.2718]
[1721585656196,2.90667,3440.4,3438.9,2.2718]
[1721585656400,2.90674,3440.3,3438.9,2.2718]
[1721585656605,2.90666,3440.4,3438.6,2.90814]
[1721585656817,2.93341146,3440.2,3438.2,2.90848]
[1721585656964,2.90682,3440.2,3438.2,2.90848]
[1721585657165,0.1468901,3440.8,3439.2,2.90762]
[1721585657394,0.1468901,3440.8,3438.2,3.590218]
[1721585657395,2.90703,3440.0,3438.0,2.3337]
[1721585657597,2.2847,3440.6,3437.4,2.90913]
[1721585657598,2.90777,3439.1,3437.4,2.90913]
[1721585657898,0.02649748,3439.9,3437.2,2.3337]
[1721585658108,0.02648826,3439.0,3437.5,2.90903]
[1721585658407,6.45658,3440.5,3437.5,2.90903]
[1721585658408,19.92,3440.4,3438.0,2.90864]
[1721585658713,2.2847,3440.6,3438.3,3.066]
[1721585658923,3.0532001,3440.8,3437.1,4.382]
[1721585658924,0.02548565,3440.3,3438.6,2.943]
[1721585659078,0.1468901,3440.8,3438.7,3.0]
[1721585659777,0.1468901,3440.8,3439.9,2.90699]
[1721585660021,0.1468901,3440.8,3439.8,2.90711]
[1721585660275,0.1468901,3440.8,3439.6,2.90729]
[1721585660463,0.1468901,3440.8,3439.7,3.0]
[1721585660662,0.1468901,3440.8,3439.7,0.3]
[1721585660900,0.1468901,3440.8,3439.7,0.68472814]
[1721585661079,0.1468901,3440.8,3440.3,2.90666]
[1721585661282,0.1468901,3440.8,3440.5,2.90652]
[1721585661590,0.1468901,3440.8,3439.7,3.0]
[1721585661591,0.1468901,3440.8,3440.7,2.90638]
[1721585661764,0.1468901,3440.8,3440.6,0.68472814]
[1721585661963,0.1468901,3440.8,3439.9,0.68472814]
[1721585662215,0.1468901,3440.8,3439.1,2.2716]
[1721585662216,0.1468901,3440.8,3439.5,3.0]
[1721585662358,0.1468901,3440.8,3439.4,2.90746]
[1721585662564,0.1468901,3440.8,3439.1,5.17927]
[1721585662783,0.1468901,3440.8,3439.1,2.2716]
[1721585662995,0.1468901,3440.8,3438.1,4.382]
[1721585662996,0.1468901,3440.8,3438.3,5.2146]
[1721585663206,0.1468901,3440.8,3439.2,0.05812334]
[1721585663373,0.1468901,3440.8,3439.3,2.90748]
[1721585663575,0.1468901,3440.8,3438.4,1.250515]
[1721585663576,0.1468901,3440.8,3439.9,2.90704]
[1721585663800,0.1468901,3440.8,3440.0,0.05810962]
[1721585663999,0.1468901,3440.8,3440.1,2.90687]
[1721585664203,0.1468901,3440.8,3440.6,5.8129]
[1721585664419,0.08879695,3440.8,3440.5,0.68472814]
[1721585664623,0.08879695,3440.8,3440.6,0.68472814]
[1721585664893,0.08879695,3440.8,3440.6,2.93705302]
[1721585665128,0.08879695,3440.8,3440.2,3.68472814]
[1721585665313,0.08879695,3440.8,3440.6,2.90644]
[1721585665488,0.0545447,3442.6,3440.7,3.0]
[1721585665688,0.0545447,3442.6,3440.7,0.68472814]
[1721585665915,0.0545447,3442.6,3440.2,3.0]
[1721585665916,0.0545447,3442.6,3441.2,2.90594]
[1721585666114,0.0545447,3442.6,3440.2,3.0]
[1721585666115,0.0545447,3442.6,3441.4,2.90576]
[1721585666317,0.0545447,3442.6,3441.5,0.03055038]
[1721585666525,0.0545447,3442.6,3441.7,2.90553]
[1721585666727,0.0545447,3442.6,3441.8,3.0]
[1721585667057,0.0545447,3442.6,3441.5,5.90565]
[1721585667331,0.0545447,3442.6,3441.5,3.68472814]
[1721585667550,0.0545447,3442.6,3441.5,3.0]
[1721585667832,0.0545447,3442.6,3440.8,2.90628]
[1721585668037,0.0545447,3442.6,3440.9,3.0]
[1721585668038,2.90507,3442.3,3440.9,3.0]
[1721585668243,2.90507,3442.3,3440.7,3.0]
[1721585668392,2.90489,3442.5,3440.1,2.943]
[1721585668594,2.90489,3442.5,3439.4,2.3585]
[1721585668595,2.2602,3442.4,3439.4,2.3585]
[1721585668795,0.0545447,3442.6,3440.3,3.066]
[1721585668796,2.90546,3441.8,3440.3,3.066]
[1721585669096,2.90546,3441.8,3439.4,2.88865]
[1721585669097,0.0545447,3442.6,3441.0,3.066]
[1721585669294,0.0545447,3442.6,3441.6,3.066]
[1721585669544,0.0545447,3442.6,3441.8,3.066]
[1721585669896,0.0545447,3442.6,3441.5,3.0]
[1721585670096,0.0545447,3442.6,3441.0,2.943]
[1721585670097,0.0545447,3442.6,3441.4,3.0]
[1721585670329,0.0545447,3442.6,3441.2,3.0]
[1721585670494,2.90507,3442.3,3440.9,2.3585]
[1721585670694,0.0545447,3442.6,3440.9,2.3585]
[1721585670695,2.9593547,3442.6,3440.9,2.3585]
[1721585670890,0.0545447,3442.6,3441.0,3.066]
[1721585671094,0.0545447,3442.6,3440.1,2.943]
[1721585671307,0.0545447,3442.6,3439.8,2.3585]
[1721585671511,2.90532,3442.0,3440.4,2.90662]
[1721585671709,2.90487,3442.5,3441.0,2.90612]
[1721585671944,0.0545447,3442.6,3440.2,3.066]
[1721585672147,2.90563,3441.6,3440.2,3.066]
[1721585672419,2.9593447,3442.6,3439.8,2.3585]
[1721585672420,2.90496,3442.4,3439.8,2.3585]
[1721585672611,0.0545447,3442.6,3440.3,0.03062433]
[1721585672812,2.90517,3442.2,3440.3,0.03062433]
[1721585673134,0.0545447,3442.6,3440.4,0.03058764]
[1721585673457,0.0545447,3442.6,3439.9,0.23585]
[1721585673458,0.0545447,3442.6,3440.9,2.9062]
[1721585673637,0.0545447,3442.6,3440.1,2.943]
[1721585673839,0.0545447,3442.6,3440.2,2.90677]
[1721585674044,2.90521,3442.1,3440.3,3.066]
[1721585674242,2.90521,3442.1,3440.1,2.943]
[1721585674243,2.9593547,3442.6,3440.9,3.066]
[1721585674416,0.0545447,3442.6,3441.0,3.0]
[1721585674760,2.90532,3442.0,3440.3,3.0]
[1721585675072,0.0545447,3442.6,3440.3,3.0]
[1721585675073,2.9052,3442.1,3440.6,5.97244]
[1721585675239,0.0545447,3442.6,3440.1,2.943]
[1721585675445,0.0545447,3442.6,3439.8,2.3585]
[1721585675446,0.0545447,3442.6,3440.2,0.03060638]
[1721585675618,2.90574,3441.5,3439.8,2.3585]
[1721585675818,0.0545447,3442.6,3439.8,2.3585]
[1721585675819,2.2602,3442.2,3439.8,2.3585]
[1721585676140,2.2602,3442.2,3440.1,3.066]
[1721585676340,0.0545447,3442.6,3441.1,3.066]
[1721585676541,0.0545447,3442.6,3441.0,2.90609]
[1721585676542,2.90487,3442.5,3441.0,2.90609]
[1721585676759,0.0545447,3442.6,3440.1,2.943]
[1721585676963,0.0545447,3442.6,3440.2,0.03057331]
[1721585677262,0.0545447,3442.6,3441.1,3.066]
[1721585677467,0.0545447,3442.6,3440.2,3.03057331]
[1721585677468,0.0545447,3442.6,3440.2,3.0]
[1721585677778,2.90605,3441.1,3439.8,2.3585]
[1721585678119,2.90581,3441.4,3439.8,2.3585]
[1721585678414,2.90581,3441.4,3439.2,2.943]
[1721585678415,2.2602,3442.3,3439.2,2.943]
[1721585678614,2.2602,3442.3,3439.2,4.08396535]
[1721585678615,0.55,3442.2,3439.2,4.08396535]
[1721585679184,2.90638,3440.7,3439.3,3.066]
[1721585679480,2.90614,3441.0,3439.3,3.066]
[1721585679639,0.55,3442.2,3439.4,0.03065643]
[1721585679847,0.55,3442.2,3439.3,3.3578]
[1721585680178,2.3486,3443.1,3439.5,3.3578]
[1721585680558,2.3486,3443.1,3439.7,3.066]
[1721585680751,2.3486,3443.1,3439.9,3.066]
[1721585680949,1.7,3442.9,3440.0,3.0]
[1721585681537,0.55,3442.5,3440.0,3.0]
[1721585681842,0.55,3442.5,3439.8,3.0]
[1721585682042,0.55,3442.5,3439.4,0.63008]
[1721585682281,0.55,3442.5,3439.5,0.657308]
[1721585682632,0.55,3442.5,3439.6,3.062]
[1721585682739,2.3486,3443.1,3439.5,3.68793995]
[1721585682740,2.3486,3443.1,3440.1,3.062]
[1721585682941,2.3486,3443.1,3440.3,3.062]
[1721585683181,2.3486,3443.1,3440.2,3.0]
[1721585683182,2.3486,3443.1,3440.5,3.062]
[1721585683385,2.3486,3443.1,3440.6,3.0]
[1721585683678,1.7,3442.8,3440.2,3.0]
[1721585683853,0.0726307,3442.7,3439.7,2.4848]
[1721585684190,0.29975787,3442.8,3440.0,2.783]
[1721585684338,2.3486,3443.1,3440.0,2.783]
[1721585684681,2.3486,3443.1,3440.1,3.062]
[1721585685092,0.2997688,3442.9,3440.1,3.062]
[1721585685393,0.2997688,3442.9,3440.2,3.0]
[1721585685553,0.2997688,3442.9,3440.1,3.0]
[1721585685751,0.07262741,3442.8,3439.8,3.062]
[1721585685952,0.2997688,3442.9,3439.7,2.4848]
[1721585685953,0.55,3442.5,3439.7,2.4848]
[1721585686165,2.3486,3442.4,3439.5,0.2918]
[1721585686558,0.55,3442.3,3439.5,0.2918]
[1721585686770,3.55,3442.3,3439.6,3.062]
[1721585687243,3.55,3442.3,3439.5,0.2918]
[1721585687447,5.25,3442.3,3439.5,0.2918]
[1721585687779,5.32264089,3442.3,3439.5,0.2918]
[1721585687993,5.32264089,3442.3,3438.8,5.5596]
[1721585687994,0.07264239,3442.2,3438.8,5.5596]
[1721585688148,2.3486,3441.8,3439.0,0.03067648]
[1721585688343,2.3486,3441.8,3438.9,2.13374881]
[1721585688587,0.55,3441.7,3438.9,2.13374881]
[1721585688766,0.55,3441.7,3438.7,3.062]
[1721585688767,3.6226503,3441.7,3438.7,3.062]
[1721585688967,1.7,3441.5,3438.2,2.783]
[1721585689152,3.62265559,3441.7,3438.3,0.0306939]
[1721585689153,0.55,3441.4,3438.3,0.0306939]
[1721585689559,4.7,3441.7,3438.3,0.3224939]
[1721585689560,0.55,3441.6,3438.3,0.3224939]
[1721585689872,0.55,3441.6,3438.5,3.3538]
[1721585690205,0.55,3441.6,3438.8,5.845]
[1721585690342,0.55,3441.6,3438.9,0.03066339]
[1721585690547,2.3486,3441.8,3440.0,2.783]
[1721585690779,2.3486,3441.8,3440.0,5.845]
[1721585691087,2.3486,3441.8,3440.1,0.03062051]
[1721585691282,2.4031447,3442.6,3440.1,0.03062051]
[1721585691589,2.4031447,3442.6,3440.2,3.062]
[1721585691770,2.3531447,3442.6,3440.3,6.062]
[1721585691956,2.3531447,3442.6,3440.5,3.062]
[1721585692145,2.3531447,3442.6,3440.4,6.062]
[1721585692345,2.3531447,3442.6,3440.4,6.7269562]
[1721585692888,2.3531447,3442.6,3440.4,6.062]
[1721585693388,2.3531447,3442.6,3440.4,3.0]
[1721585693546,2.3531447,3442.6,3440.2,3.0]
[1721585694058,2.3531447,3442.6,3440.2,6.062]
[1721585694446,2.3531447,3442.6,3440.0,2.783]
[1721585694447,2.3531447,3442.6,3439.9,3.062]
[1721585694653,2.3531447,3442.6,3439.4,3.98016882]
[1721585694654,0.55,3442.5,3439.4,2.783]
[1721585694952,0.55,3442.5,3439.4,3.0613]
[1721585695191,0.55,3442.5,3439.5,0.62297232]
[1721585695502,0.55,3442.5,3439.7,3.062]
[1721585695658,0.55,3442.5,3439.8,3.062]
[1721585696056,0.55,3442.5,3439.9,3.0]
[1721585696258,2.65328744,3442.6,3439.9,0.3]
[1721585696456,2.3531447,3442.6,3440.6,2.783]
[1721585696697,2.3531447,3442.6,3440.7,3.0]
[1721585697518,2.3531447,3442.6,3440.1,3.0]
[1721585697734,0.07261915,3442.5,3440.1,3.0]
[1721585697943,4.35292034,3442.6,3439.9,0.2918]
[1721585698742,1.7,3442.2,3439.9,0.2918]
[1721585699049,1.77264219,3442.2,3439.5,0.2918]
[1721585699343,1.77264219,3442.2,3438.8,5.87097695]
[1721585699344,3.86316279,3442.1,3438.8,5.87097695]
[1721585699508,2.3166,3441.6,3438.8,2.783]
[1721585699710,0.55,3441.5,3438.8,5.845]
[1721585700021,0.55,3441.5,3438.9,0.62432917]
[1721585700232,0.55,3441.5,3439.0,3.062]
[1721585700532,3.55,3441.5,3439.1,0.03066277]
[1721585700733,0.55,3441.5,3439.1,0.03066277]
[1721585700895,0.55,3441.5,3438.9,3.062]
[1721585700896,0.55,3441.5,3438.9,0.60317695]
[1721585701098,0.55,3441.5,3438.8,2.783]
[1721585701099,0.55,3441.5,3439.0,0.0306774]
[1721585701333,1.7,3441.3,3439.1,0.03067752]
[1721585701670,1.7,3441.3,3438.4,3.062]
[1721585701671,2.3166,3441.1,3438.4,3.062]
[1721585701943,2.3166,3441.1,3438.5,0.03069014]
[1721585701944,1.7,3440.9,3438.5,0.03069014]
[1721585702108,1.7,3440.9,3438.3,3.062]
[1721585702109,2.3166,3440.8,3438.3,3.062]
[1721585702308,2.8666,3440.8,3438.3,3.062]
[1721585702522,2.8666,3440.8,3438.4,0.03070427]
[1721585702897,2.3166,3440.8,3438.4,0.03070427]
[1721585703334,2.3166,3441.9,3439.5,3.062]
[1721585703535,2.3166,3441.9,3440.1,3.062]
[1721585703706,2.3166,3441.9,3440.3,3.062]
[1721585703919,2.3166,3441.9,3440.4,0.03059485]
[1721585704135,2.3166,3441.9,3440.4,3.0]
[1721585704437,2.3166,3441.9,3439.6,0.60317695]
[1721585704641,2.3166,3441.9,3439.6,0.62486391]
[1721585704936,2.3166,3441.9,3439.4,2.783]
[1721585704937,0.29991369,3441.8,3439.7,0.03063818]
[1721585705309,2.3166,3441.9,3439.5,3.062]
[1721585705637,2.3166,3441.9,3439.7,3.062]
[1721585705838,2.3166,3441.9,3439.9,3.062]
[1721585706043,2.3166,3441.9,3440.0,0.03061221]
[1721585706351,0.0045447,3442.6,3440.1,4.32073253]
[1721585706512,0.0045447,3442.6,3440.0,2.783]
[1721585706514,0.0045447,3442.6,3440.4,3.66517695]
[1721585706699,0.0045447,3442.6,3440.5,6.062]
[1721585706895,0.0045447,3442.6,3440.5,3.062]
[1721585707206,0.0045447,3442.6,3440.6,3.0]
[1721585707407,2.3166,3442.4,3440.2,3.0]
[1721585707636,0.0045447,3442.6,3438.9,0.60317695]
[1721585707637,1.7,3441.8,3438.9,0.60317695]
[1721585707809,0.57493232,3441.5,3438.9,0.2918]
[1721585708197,0.57493232,3441.5,3438.3,1.21156882]
[1721585708198,1.7,3441.2,3438.3,0.60317695]
[1721585708397,0.57493232,3440.9,3438.4,0.03069777]
[1721585708644,2.89153232,3440.9,3438.1,3.062]
[1721585708817,2.1218985,3440.8,3438.2,0.03070589]
[1721585709022,0.99696618,3440.7,3438.3,3.062]
[1721585709328,3.1784511,3440.9,3438.5,3.3538]
[1721585709329,2.3166,3440.9,3438.5,3.3538]
[1721585709634,2.3166,3440.9,3438.7,3.062]
[1721585709997,2.3166,3440.9,3438.8,3.0]
[1721585710200,2.3166,3440.4,3438.1,0.2918]
[1721585710438,1.7,3440.5,3438.1,0.2918]
[1721585710439,2.89153232,3440.2,3438.1,0.2918]
[1721585710844,2.89153232,3440.2,3438.6,2.783]
[1721585710845,2.3166,3440.2,3438.6,2.783]
[1721585711131,2.3166,3440.2,3438.9,3.062]
[1721585711293,2.3166,3441.5,3439.0,0.03068836]
[1721585711497,2.3166,3441.5,3439.3,3.062]
[1721585711745,2.3166,3441.5,3439.9,3.062]
[1721585711924,2.3166,3441.5,3439.8,2.783]
[1721585711925,2.3166,3441.5,3440.0,3.0]
[1721585712108,2.3166,3441.5,3439.9,3.062]
[1721585712309,2.3166,3441.5,3439.5,3.2918]
[1721585712310,2.3166,3441.5,3440.0,3.0]
[1721585712520,2.3166,3441.5,3440.1,0.03063398]
[1721585712754,0.57947702,3442.6,3440.0,0.3]
[1721585712755,2.3166,3442.5,3440.0,0.3]
[1721585713053,2.3166,3442.5,3439.9,3.0]
[1721585713198,0.29122064,3442.4,3439.4,3.0]
[1721585713542,2.3166,3442.2,3439.3,3.0]
[1721585713752,1.44562663,3442.1,3439.3,3.0]
[1721585714035,1.44562663,3442.1,3438.7,0.2918]
[1721585714036,2.89153232,3441.8,3438.7,0.2918]
[1721585714246,2.3166,3441.6,3438.4,0.60317695]
[1721585714424,1.5183731,3441.7,3438.0,3.99015843]
[1721585714425,2.89153232,3441.3,3438.5,0.15085458]
[1721585714744,2.89153232,3441.3,3438.0,2.783]
[1721585714745,2.3166,3441.1,3438.0,2.783]
[1721585715044,2.3166,3440.9,3438.7,3.062]
[1721585715203,2.3166,3440.9,3438.6,2.783]
[1721585715537,0.6226616,3440.8,3438.0,3.0748]
[1721585715746,2.3166,3440.6,3438.0,0.2918]
[1721585716046,2.3892805,3440.5,3438.0,0.2918]
[1721585716226,2.3166,3440.5,3438.1,0.03073629]
[1721585716399,2.3166,3440.5,3438.7,3.062]
[1721585716623,2.3166,3440.5,3438.8,0.03068024]
[1721585716864,2.3166,3441.9,3439.3,3.062]
[1721585717067,2.3166,3441.9,3439.5,3.062]
[1721585717223,2.3166,3441.9,3439.6,3.03065136]
[1721585717418,2.3166,3441.9,3439.6,0.03065136]
[1721585717654,2.3166,3441.9,3439.8,3.062]
[1721585717855,2.3166,3441.9,3439.9,3.0]
[1721585718057,2.3166,3441.9,3439.4,3.0]
[1721585718058,2.3166,3441.7,3439.4,3.0]
[1721585718360,2.3166,3441.7,3438.2,1.21993058]
[1721585718361,2.3166,3441.5,3438.2,1.21993058]
[1721585718558,0.85688013,3441.4,3438.3,1.48112209]
[1721585718765,0.85688013,3441.4,3438.1,3.60317695]
[1721585718766,2.3166,3441.3,3438.1,0.2918]
[1721585718962,2.3166,3441.1,3438.1,0.2918]
[1721585719279,2.3642,3440.8,3437.9,0.2918]
[1721585719425,1.7,3440.9,3437.9,0.2918]
[1721585719426,2.3642,3440.6,3437.9,0.2918]
[1721585719778,2.3642,3440.4,3438.0,0.0307527]
[1721585719922,2.3642,3440.4,3437.9,0.2918]
[1721585720273,0.0726794,3440.7,3437.2,0.90536882]
[1721585720274,2.3642,3440.2,3438.0,0.03075306]
[1721585720426,2.3642,3440.2,3438.1,6.1368]
[1721585720760,2.3642,3440.2,3438.8,3.062]
[1721585720925,2.3642,3440.2,3438.9,0.03069256]
[1721585721285,2.3642,3440.2,3438.3,1.19716882]
[1721585721286,2.3642,3440.2,3438.3,0.2918]
[1721585721880,2.3642,3440.2,3438.7,2.783]
[1721585722374,2.3642,3440.2,3438.8,3.09270044]
[1721585722530,2.3642,3441.9,3439.3,2.783]
[1721585722725,2.3642,3441.9,3439.4,3.09264089]
[1721585722958,2.3642,3441.9,3439.5,3.0]
[1721585723330,0.87497892,3442.5,3439.4,3.0]
[1721585723331,0.07264496,3441.8,3439.4,3.0]
[1721585723570,0.07264496,3441.8,3438.7,3.99015843]
[1721585723571,2.3642,3441.6,3438.7,2.783]
[1721585723780,2.3642,3441.6,3439.5,0.03068275]
[1721585724085,2.3642,3441.6,3439.3,2.783]
[1721585724086,2.3642,3441.6,3439.6,0.03064098]
[1721585724237,2.3642,3441.6,3439.3,2.783]
[1721585724679,2.3642,3441.6,3439.2,0.2918]
[1721585725337,2.3642,3441.6,3438.7,3.60317695]
[1721585725338,0.30004606,3441.5,3438.7,3.0]
[1721585725545,2.3642,3441.4,3438.7,3.97399769]
[1721585725739,2.3642,3441.2,3438.3,0.60317695]
[1721585726062,2.3642,3441.2,3437.8,0.60317695]
[1721585726063,1.7,3440.7,3437.8,0.60317695]
[1721585726379,1.40214162,3441.1,3437.5,0.2918]
[1721585726380,2.3642,3440.5,3437.5,0.2918]
[1721585726560,0.55,3440.4,3437.7,0.2918]
[1721585726886,2.3642,3440.2,3437.7,0.2918]
[1721585727040,2.3642,3440.1,3437.7,0.2918]
[1721585727575,2.3642,3440.1,3437.3,3.38617695]
[1721585727576,0.55,3440.0,3437.4,0.2918]
[1721585727843,2.3642,3439.8,3437.6,0.2918]
[1721585728602,2.3642,3439.8,3437.6,0.59928]
[1721585728761,2.3642,3439.8,3437.5,0.2918]
[1721585729130,2.3642,3439.8,3437.7,0.2918]
[1721585729315,2.3642,3439.8,3437.4,3.60317695]
[1721585729316,2.3642,3439.8,3438.0,0.2918]
[1721585729591,2.3642,3439.8,3438.0,3.2918]
[1721585730306,2.3642,3439.8,3438.1,0.2918]
[1721585731192,2.3642,3439.8,3437.6,0.2918]
[1721585732298,2.3642,3439.8,3437.5,0.2918]
[1721585732521,2.3642,3439.8,3438.1,0.2918]
[1721585733586,2.3642,3439.8,3437.2,0.89497695]
[1721585733794,2.3642,3439.8,3437.4,0.2918]
[1721585733997,2.3642,3439.8,3437.1,0.60317695]
[1721585733998,2.3642,3439.8,3437.6,0.2918]
[1721585734301,2.3642,3439.8,3437.5,0.09682945]
[1721585734302,2.3642,3439.8,3437.8,0.2918]
[1721585734804,0.07100847,3439.7,3437.8,0.2918]
[1721585735097,2.3642,3439.8,3437.8,0.2918]
[1721585735271,2.3642,3439.8,3437.8,0.62098]
[1721585735657,1.9487857,3439.8,3437.6,0.2918]
[1721585735861,1.9487857,3439.8,3437.8,0.2918]
[1721585736559,1.77269666,3439.7,3437.8,0.2918]
[1721585736780,1.77269666,3439.7,3437.0,0.2918]
[1721585736982,1.77269666,3439.7,3437.3,0.2918]
[1721585736983,0.55,3439.6,3437.3,0.2918]
[1721585737182,0.07270069,3439.5,3437.5,0.2918]
[1721585737517,1.7,3439.3,3437.7,0.2918]
[1721585737865,0.55,3439.6,3437.7,0.2918]
[1721585737866,1.7,3438.9,3437.7,0.2918]
[1721585738559,0.55,3439.6,3436.4,0.18890483]
[1721585738560,1.7,3438.4,3436.4,0.18890483]
[1721585738782,1.7,3438.4,3435.5,2.783]
[1721585738783,2.3642,3438.3,3435.5,2.783]
[1721585738985,2.3642,3438.3,3435.5,3.42781769]
[1721585739390,0.62272613,3438.2,3435.5,2.783]
[1721585739566,2.3642,3438.1,3435.6,0.2918]
[1721585739931,2.3642,3437.8,3435.7,0.2918]
[1721585740226,2.3642,3437.8,3435.8,0.03087347]
[1721585740584,2.3642,3437.8,3435.7,3.3538]
[1721585740778,2.3642,3437.8,3436.4,2.90996]
[1721585741022,2.3642,3437.8,3436.0,2.91035]
[1721585741023,2.909,3437.7,3436.0,2.91035]
[1721585741182,2.90918,3437.4,3435.9,2.91041]
[1721585741397,2.90918,3437.4,3435.2,0.60317695]
[1721585741398,2.3642,3437.8,3435.5,2.91077]
[1721585741603,0.07272998,3437.7,3435.2,0.18625208]
[1721585741911,2.3642,3437.8,3435.0,3.062]
[1721585741912,2.9091,3437.5,3435.0,3.062]
[1721585742106,2.3642,3437.8,3436.2,2.91018]
[1721585742314,2.3642,3437.8,3435.5,2.783]
[1721585742315,2.3642,3437.8,3436.4,2.90998]
[1721585742494,2.3642,3437.8,3435.5,2.783]
[1721585742495,2.3642,3437.8,3436.9,2.90959]
[1721585742703,2.3642,3437.8,3436.5,0.03084618]
[1721585742704,5.27305,3437.8,3436.2,2.91014]
[1721585743006,5.27305,3437.8,3435.7,2.91056]
[1721585743007,2.90924,3437.4,3435.7,2.91056]
[1721585743220,2.3642,3437.8,3435.8,3.0]
[1721585743221,2.90962,3436.9,3435.8,3.0]
[1721585743410,2.90967,3436.9,3435.7,3.0]
[1721585743613,2.98182175,3437.6,3435.6,2.91069]
[1721585743822,2.98182175,3437.6,3434.9,2.96923327]
[1721585743823,0.07274175,3437.6,3435.0,2.91115]
[1721585744021,2.90943,3437.1,3435.0,0.2918]
[1721585744334,2.3006,3437.3,3435.2,0.2918]
[1721585744490,2.3006,3437.3,3436.2,2.91018]
[1721585744689,2.3006,3437.3,3435.8,0.2918]
[1721585744926,2.90956,3437.0,3435.7,2.91061]
[1721585745129,2.90943,3437.1,3435.7,2.91058]
[1721585745352,2.3006,3437.3,3435.9,2.91036]
[1721585745620,2.3006,3437.3,3436.0,3.0]
[1721585745621,2.90943,3437.1,3436.0,3.0]
[1721585745835,2.90943,3437.1,3435.5,2.91072]
[1721585745836,2.3006,3437.3,3435.8,2.91052]
[1721585746039,2.3006,3437.3,3436.2,2.91018]
[1721585746188,2.3006,3437.3,3436.3,5.91009]
[1721585746384,2.3006,3437.3,3436.1,2.91026]
[1721585746620,2.3006,3437.3,3436.0,0.2918]
[1721585746621,5.20986,3437.3,3436.2,3.0]
[1721585746839,5.20986,3437.3,3436.0,3.20216]
[1721585747003,5.20986,3437.3,3435.7,2.91059]
[1721585747004,2.3006,3437.3,3436.1,5.91027]
[1721585747207,2.90942,3437.2,3436.1,3.0]
[1721585747413,2.3006,3437.3,3435.9,3.0]
[1721585747583,2.3006,3437.3,3435.0,2.783]
[1721585747584,2.90968,3436.8,3435.0,2.783]
[1721585748038,2.90979,3436.7,3435.0,2.783]
[1721585748294,2.3006,3437.3,3435.0,2.783]
[1721585748295,2.90936,3437.2,3435.6,2.91069]
[1721585748486,2.3006,3437.3,3435.1,0.2918]
[1721585748487,2.3343,3436.4,3435.1,2.91112]
[1721585748727,2.3343,3436.4,3435.0,0.18591078]
[1721585748898,2.3343,3436.4,3434.9,2.91128]
[1721585748899,2.91019,3436.2,3434.9,2.91128]
[1721585749104,2.3343,3436.4,3434.9,2.91128]
[1721585749105,2.91028,3436.1,3434.9,2.91128]
[1721585749327,2.91037,3436.0,3434.6,2.91152]
[1721585749530,2.91044,3435.9,3434.6,2.91152]
[1721585749992,2.3343,3436.4,3435.1,2.91109]
[1721585750242,2.3343,3436.4,3434.7,0.35127154]
[1721585750243,2.3343,3436.4,3435.6,2.91067]
[1721585750551,2.3343,3436.4,3435.8,2.9105]
[1721585750885,2.3343,3436.4,3435.9,3.0]
[1721585751134,2.3343,3436.4,3436.3,2.9101]
[1721585751344,1.7,3438.4,3436.3,3.0]
[1721585751345,5.24339,3437.5,3436.3,3.0]
[1721585751496,2.90926,3437.3,3436.2,3.0]
[1721585751692,5.24339,3437.5,3436.2,3.0]
[1721585751924,2.90917,3437.4,3436.2,3.0]
[1721585752094,2.3343,3437.5,3436.3,2.91009]
[1721585752298,2.3343,3437.5,3436.4,2.91]
[1721585752498,2.3343,3437.5,3436.5,3.0]
[1721585752807,2.3343,3437.5,3436.7,2.90975]
[1721585753002,2.3343,3437.5,3436.8,3.0]
[1721585753233,2.3343,3437.5,3436.8,5.90968]
[1721585753437,2.3343,3437.5,3436.8,3.0]
[1721585753731,2.3343,3437.5,3435.8,3.0]
[1721585753892,2.3343,3437.5,3435.9,2.91041]
[1721585754096,2.3343,3437.5,3436.0,5.91035]
[1721585754330,2.3343,3437.5,3435.8,3.0]
[1721585754331,2.90959,3436.9,3435.8,3.0]
[1721585754627,2.90943,3437.1,3435.7,2.9106]
[1721585754855,2.90943,3437.1,3435.8,5.91052]
[1721585755028,2.90926,3437.3,3435.9,3.0]
[1721585755233,2.3343,3437.5,3435.9,3.0]
[1721585755234,2.3343,3437.5,3435.9,3.2918]